Workbook

Sheet Intro
A1: Multi, intro hold
E3: 1 | F3: 2 | G3: 3 | H3: 4 | I3: 5 | J3: 6 | K3: 7 | L3: 8 | M3: 9 | N3: 10 | O3: 11 | P3: 12 | Q3: 13 | R3: 14 | S3: 15 | T3: 16 | V3: Total | X3: Placering
A5: Emil Jepsen - Peter Jepsen | E5: 6.06 | F5: 5.88 | G5: 13.72 | H5: 14.66 | I5: 11.94 | J5: 8.51 | K5: 12.58 | L5: 4.58 | M5: 14.33 | N5: 12.07 | O5: 14.24 | P5: 12.6 | Q5: 10.79 | R5: 3.54 | S5: 12.6 | T5: 6.03 | V5: =AVERAGE(E5:T5) -> 10.258125 | X5: 8
A6: Asger Bruhn - Per Ebdrup | E6: 11.65 | F6: 16.63 | G6: 5.81 | H6: 10.43 | I6: 8.21 | J6: 1.45 | K6: 4.85 | L6: 11.59 | M6: 8.93 | N6: 12.29 | O6: 0.85 | P6: 8.03 | Q6: 2.44 | R6: 7.09 | S6: 13.33 | T6: 7.16 | V6: =AVERAGE(E6:T6) -> 8.17125 | X6: 15
A8: Jan Pedersen - Nils Mønsted | E8: 15.1 | F8: 11.12 | G8: 6.28 | H8: 9.57 | I8: 9.65 | J8: 8.92 | K8: 9.6 | L8: 5.08 | M8: 7.26 | N8: 5.69 | O8: 12.99 | P8: 14.85 | Q8: 13.4 | R8: 12.73 | S8: 11.09 | T8: 18.47 | V8: =AVERAGE(E8:T8) -> 10.7375 | X8: 4
A9: Ricardo Mirasola - Jan Kølbæk | E9: 17.05 | F9: 8.78 | G9: 14.19 | H9: 5.34 | I9: 8.37 | J9: 8.51 | K9: 5.68 | L9: 11.14 | M9: 9.03 | N9: 15.17 | O9: 15.04 | P9: 10.97 | Q9: 15.72 | R9: 2.84 | S9: 7.21 | T9: 9.35 | V9: =AVERAGE(E9:T9) -> 10.274375 | X9: 7
A11: Marlene Henneberg - J.O Henneberg | E11: 19.28 | F11: 8.92 | G11: 17.96 | H11: 3.46 | I11: 11.79 | J11: 11.49 | K11: 10.4 | L11: 8.86 | M11: 5.78 | N11: 6.58 | O11: 13.09 | P11: 6.68 | Q11: 8.7 | R11: 7.9 | S11: 4.83 | T11: 1.21 | V11: =AVERAGE(E11:T11) -> 9.183125 | X11: 12
A12: Nikolaj Krefeld Hammelev - Lars Peter Damgaard | E12: 9.66 | F12: 8.63 | G12: 9.41 | H12: 9.82 | I12: 8.06 | J12: 18.55 | K12: 14.32 | L12: 14.92 | M12: 15.01 | N12: 8.86 | O12: 16.49 | P12: 11.4 | Q12: 4.66 | R12: 12.04 | S12: 11.12 | T12: 15.53 | V12: =AVERAGE(E12:T12) -> 11.78 | X12: 3
A14: Lida Hulgaard - Øjvind Hulgaard | E14: 3.65 | F14: 18.99 | G14: 12.89 | H14: 17.22 | I14: 10.74 | J14: 7.32 | K14: 7.42 | L14: 8.41 | M14: 12.74 | N14: 4.83 | O14: 6.91 | P14: 8.6 | Q14: 7.74 | R14: 6.02 | S14: 15.17 | T14: 4.47 | V14: =AVERAGE(E14:T14) -> 9.57 | X14: 10
A15: Camilla Bo Krefeld - Johan Hammelev | E15: 5.73 | F15: 10.87 | G15: 11.77 | H15: 15.3 | I15: 14.01 | J15: 14.32 | K15: 15.15 | L15: 15.42 | M15: 10.97 | N15: 14.31 | O15: 3.51 | P15: 13.32 | Q15: 14.37 | R15: 15.32 | S15: 8.88 | T15: 17.79 | V15: =AVERAGE(E15:T15) -> 12.565 | X15: 1
A17: Henrik Caspersen - Niels Krøjgaard | E17: 16.35 | F17: 9.13 | G17: 9.21 | H17: 9.93 | I17: 9.13 | J17: 18.42 | K17: 6.9 | L17: 11.79 | M17: 11.07 | N17: 7.93 | O17: 7.01 | P17: 9.03 | Q17: 11.3 | R17: 7.96 | S17: 2.72 | T17: 8.75 | V17: =AVERAGE(E17:T17) -> 9.789375 | X17: 9
A18: Martin Klausen - Palle Jensen | E18: 14.27 | F18: 1.01 | G18: 10.98 | H18: 9.73 | I18: 10.88 | J18: 4.77 | K18: 6.93 | L18: 5.98 | M18: 5.67 | N18: 7.71 | O18: 4.96 | P18: 5.15 | Q18: 15.34 | R18: 12.1 | S18: 5.86 | T18: 4.67 | V18: =AVERAGE(E18:T18) -> 7.875625 | X18: 16
A20: Jesper Bechsgaard - Anders Handberg Sørensen | E20: 0.72 | F20: 11.37 | G20: 7.11 | H20: 4.7 | I20: 10.87 | J20: 15.23 | K20: 5.59 | L20: 7.77 | M20: 9.03 | N20: 5.85 | O20: 19.15 | P20: 7.4 | Q20: 4.28 | R20: 7.27 | S20: 7.4 | T20: 12.84 | V20: =AVERAGE(E20:T20) -> 8.53625 | X20: 14
A21: Morten Bilde - Søren Cilleborg Bilde | E21: 10.34 | F21: 11.08 | G21: 8.23 | H21: 2.78 | I21: 9.12 | J21: 1.58 | K21: 17.27 | L21: 15.04 | M21: 11.09 | N21: 17.4 | O21: 5.76 | P21: 11.97 | Q21: 6.6 | R21: 17.16 | S21: 6.67 | T21: 13.97 | V21: =AVERAGE(E21:T21) -> 10.37875 | X21: 6
A23: Jørgen Cilleborg Hansen - Steen Schou | E23: 2.95 | F23: 8.88 | G23: 10.59 | H23: 16.54 | I23: 9.26 | J23: 5.68 | K23: 13.1 | L23: 14.02 | M23: 8.91 | N23: 14.15 | O23: 16.32 | P23: 4.42 | Q23: 17.56 | R23: 16.46 | S23: 17.28 | T23: 15.33 | V23: =AVERAGE(E23:T23) -> 11.965625 | X23: 2
A24: H K Sørensen - Niels Henriksen | E24: 4.9 | F24: 11.22 | G24: 2.04 | H24: 10.18 | I24: 5.99 | J24: 12.68 | K24: 13.07 | L24: 8.21 | M24: 10.97 | N24: 2.6 | O24: 8.38 | P24: 8.15 | Q24: 9.21 | R24: 12.91 | S24: 14.14 | T24: 11.25 | V24: =AVERAGE(E24:T24) -> 9.11875 | X24: 13
A26: Kresten Roland Johansen - Troels Buus Thomsen | E26: 13.94 | F26: 3.37 | G26: 10.79 | H26: 10.27 | I26: 11.63 | J26: 11.08 | K26: 14.41 | L26: 4.96 | M26: 4.99 | N26: 13.42 | O26: 3.68 | P26: 11.85 | Q26: 5.63 | R26: 13.98 | S26: 12.79 | T26: 1.53 | V26: =AVERAGE(E26:T26) -> 9.27 | X26: 11
A27: Jens Kofoed - Emil Buus Thomsen | E27: 8.35 | F27: 14.12 | G27: 9.02 | H27: 10.07 | I27: 10.35 | J27: 11.49 | K27: 2.73 | L27: 12.23 | M27: 14.22 | N27: 11.14 | O27: 11.62 | P27: 15.58 | Q27: 12.26 | R27: 4.68 | S27: 8.91 | T27: 10.65 | V27: =AVERAGE(E27:T27) -> 10.46375 | X27: 5
A44: Øjvind Hulgaard - Jesper Gad
A45: Niels Krøjgaard - Henrik Caspersen - H C Graversen

Sheet RR1
A1: Multi, RR1
E3: 1 | F3: 2 | G3: 3 | H3: 4 | I3: 5 | J3: 6 | K3: 7 | L3: 8 | M3: 9 | N3: 10 | O3: 11 | P3: 12 | Q3: 13 | R3: 14 | T3: Total | U3: Placering
A5: Jan Pedersen - Nils Mønsted | E5: 7.2 | F5: 8.2 | G5: 10.17 | H5: 10.44 | I5: 10.02 | J5: 9.23 | K5: 13.15 | L5: 11.78 | M5: 4.44 | N5: 4.63 | O5: 16.08 | P5: 3.84 | Q5: 11.36 | R5: 10.68 | T5: =AVERAGE(E5:R5) -> 9.372857143 | U5: 11
A6: Camilla Bo Krefeld - Johan Hammelev | E6: 5.77 | F6: 12.37 | G6: 15.36 | H6: 14.59 | I6: 11.39 | J6: 11.04 | K6: 7.11 | L6: 9.07 | M6: 11.14 | N6: 10.97 | O6: 15.47 | P6: 15.07 | Q6: 13.74 | R6: 9.23 | T6: =AVERAGE(E6:R6) -> 11.59428571 | U6: 3
A8: Ricardo Mirasola - Jan Kølbæk | E8: 13.79 | F8: 8.28 | G8: 4.64 | H8: 9.56 | I8: 5.93 | J8: 14.64 | K8: 14.11 | L8: 16.35 | M8: 10 | N8: 16.27 | O8: 6.59 | P8: 15.38 | Q8: 12.54 | R8: 17.65 | T8: =AVERAGE(E8:R8) -> 11.83785714 | U8: 2
A9: Marlene Henneberg - J.O Henneberg | E9: 10.41 | F9: 8.83 | G9: 9.83 | H9: 5.41 | I9: 13.02 | J9: 15.03 | K9: 14.36 | L9: 16.12 | M9: 3.44 | N9: 11.62 | O9: 15.3 | P9: 1.99 | Q9: 17.1 | R9: 13.47 | T9: =AVERAGE(E9:R9) -> 11.13785714 | U9: 5
A11: Lida Hulgaard - Øjvind Hulgaard | E11: 9.91 | F11: 12.95 | G11: 6.31 | H11: 8.23 | I11: 9.98 | J11: 8.96 | K11: 5.89 | L11: 3.88 | M11: 3.4 | N11: 11.79 | O11: 10.97 | P11: 14.71 | Q11: 5.84 | R11: 12.61 | T11: =AVERAGE(E11:R11) -> 8.959285714 | U11: 13
A12: Jesper Bechsgaard - Anders Handberg Sørensen | E12: 9.41 | F12: 15.51 | G12: 11.25 | H12: 7.15 | I12: 8.61 | J12: 10.77 | K12: 5.64 | L12: 3.65 | M12: 7.5 | N12: 7.67 | O12: 4.73 | P12: 7.76 | Q12: 0.58 | R12: 13.75 | T12: =AVERAGE(E12:R12) -> 8.141428571 | U12: 14
A14: Morten Bilde - Søren Cilleborg Bilde | E14: 8.37 | F14: 12.24 | G14: 14.15 | H14: 12.78 | I14: 6.39 | J14: 11.68 | K14: 6.85 | L14: 10.93 | M14: 10 | N14: 8.38 | O14: 15.27 | P14: 5.29 | Q14: 7.96 | R14: 9.1 | T14: =AVERAGE(E14:R14) -> 9.956428571 | U14: 10
A15: Emil Jepsen - Peter Jepsen | E15: 6.92 | F15: 6.04 | G15: 17.64 | H15: 12.36 | I15: 5.82 | J15: 17.28 | K15: 12.89 | L15: 8.22 | M15: 16.56 | N15: 3.73 | O15: 9.03 | P15: 12.24 | Q15: 9.64 | R15: 13.59 | T15: =AVERAGE(E15:R15) -> 10.85428571 | U15: 6
A17: Jørgen Cilleborg Hansen - Steen Schou | E17: 11.63 | F17: 13.96 | G17: 11.2 | H17: 16.17 | I17: 18.38 | J17: 16.9 | K17: 17.28 | L17: 15.09 | M17: 15.56 | N17: 9.03 | O17: 13.41 | P17: 18.01 | Q17: 14.16 | R17: 6.25 | T17: =AVERAGE(E17:R17) -> 14.07357143 | U17: 1
A18: H K Sørensen - Niels Henriksen | E18: 13.08 | F18: 7.76 | G18: 7.96 | H18: 13.53 | I18: 13.24 | J18: 9.1 | K18: 15.18 | L18: 9.73 | M18: 8.86 | N18: 15.37 | O18: 4.7 | P18: 4.62 | Q18: 19.42 | R18: 7.39 | T18: =AVERAGE(E18:R18) -> 10.71 | U18: 7
A20: Asger Bruhn - Per Ebdrup | E20: 10.09 | F20: 4.49 | G20: 2.36 | H20: 7.22 | I20: 1.62 | J20: 10.9 | K20: 8.92 | L20: 1.69 | M20: 6.5 | N20: 5.07 | O20: 3.92 | P20: 4.93 | Q20: 7.46 | R20: 6.53 | T20: =AVERAGE(E20:R20) -> 5.835714286 | U20: 16
A21: Martin Klausen - Palle Jensen | E21: 10.59 | F21: 7.05 | G21: 5.85 | H21: 7.64 | I21: 6.76 | J21: 3.1 | K21: 5.23 | L21: 9.97 | M21: 2.53 | N21: 7.51 | O21: 4.53 | P21: 16.16 | Q21: 2.9 | R21: 2.35 | T21: =AVERAGE(E21:R21) -> 6.583571429 | U21: 15
A23: Nikolaj Krefeld Hammelev - Lars Peter Damgaard | E23: 9.59 | F23: 11.72 | G23: 8.75 | H23: 11.77 | I23: 13.62 | J23: 2.72 | K23: 4.82 | L23: 4.91 | M23: 17.47 | N23: 14.93 | O23: 8.13 | P23: 3.46 | Q23: 6.26 | R23: 9.32 | T23: =AVERAGE(E23:R23) -> 9.105 | U23: 12
A24: Kresten Roland Johansen - Troels Buus Thomsen | E24: 6.21 | F24: 11.17 | G24: 13.69 | H24: 12.85 | I24: 14.18 | J24: 8.32 | K24: 2.72 | L24: 10.27 | M24: 13.5 | N24: 12.49 | O24: 9.99 | P24: 12.56 | Q24: 8.64 | R24: 10.77 | T24: =AVERAGE(E24:R24) -> 10.52571429 | U24: 8
A26: Henrik Caspersen - Niels Krøjgaard | E26: 14.23 | F26: 11.8 | G26: 12.04 | H26: 3.83 | I26: 6.98 | J26: 5.36 | K26: 11.08 | L26: 10.03 | M26: 16.6 | N26: 12.33 | O26: 11.87 | P26: 7.44 | Q26: 12.04 | R26: 6.41 | T26: =AVERAGE(E26:R26) -> 10.14571429 | U26: 9
A27: Jens Kofoed - Emil Buus Thomsen | E27: 12.8 | F27: 7.63 | G27: 8.8 | H27: 6.47 | I27: 14.07 | J27: 4.97 | K27: 14.77 | L27: 18.31 | M27: 12.5 | N27: 8.21 | O27: 10.01 | P27: 16.54 | Q27: 10.36 | R27: 10.9 | T27: =AVERAGE(E27:R27) -> 11.16714286 | U27: 4

Sheet Imp Par
A1: IMP Par
B4: 1 | C4: 2 | D4: 3 | E4: 4 | F4: 5 | I4: Placering
A5: H K Sørensen - Niels Henriksen | B5: 41.9 | C5: 55 | D5: 52.8 | E5: 36.9 | F5: 5.9 | H5: =SUM(B5:F5) -> 192.5 | I5: 1
A6: Henrik Caspersen - Niels Krøjgaard | B6: 13.1 | C6: 53.6 | D6: 24 | E6: 20.7 | F6: 41.4 | H6: 152.8 | I6: 2
A7: Nikolaj Krefeld Hammelev - Lars Peter Damgaard | B7: 8 | C7: 30.4 | D7: 7.3 | E7: 18.7 | F7: 8.9 | H7: 73.3 | I7: 3
A8: Jens Kofoed - Emil Buus Thomsen | B8: -0.4 | C8: 45.4 | D8: 50.9 | E8: -14.6 | F8: -24.3 | H8: 57 | I8: 4
A9: Emil Jepsen - Peter Jepsen | B9: -5 | C9: -21.1 | D9: 15.2 | E9: 37.5 | F9: 14.4 | H9: 41 | I9: 5
A10: Camilla Bo Krefeld - Johan Hammelev | B10: -26.2 | C10: 21.3 | D10: 10.9 | E10: -0.1 | F10: 22 | H10: 27.9 | I10: 6
A11: Ricardo Mirasola - Jan Kølbæk | B11: -4.2 | C11: 0.9 | D11: -10.3 | E11: 19.7 | F11: 10.2 | H11: 16.3 | I11: 7
A12: Jørgen Cilleborg Hansen - Steen Schou | B12: 14.6 | C12: -31.9 | D12: 37.2 | E12: -15.8 | F12: 5 | H12: 9.1 | I12: 8
A13: Jan Pedersen - Nils Mønsted | B13: -17.1 | C13: 33.4 | D13: -38.2 | E13: 1.3 | F13: 2.7 | H13: -17.9 | I13: 9
A14: Marlene Henneberg - J.O Henneberg | B14: -2.3 | C14: -25.8 | D14: -48.9 | E14: 28 | F14: 25.1 | H14: -23.9 | I14: 10
A15: Kresten Roland Johansen - Troels Buus Thomsen | B15: -17.4 | C15: 0.7 | D15: 28 | E15: -26.7 | F15: -17.9 | H15: -33.3 | I15: 11
A16: Morten Bilde - Søren Cilleborg Bilde | B16: -25.9 | C16: 9.3 | D16: -12.3 | E16: 4.6 | F16: -23.4 | H16: -47.7 | I16: 12
A17: Lida Hulgaard - Øjvind Hulgaard | B17: 9 | C17: 7.1 | D17: -46.4 | E17: -24.6 | F17: 6.3 | H17: -48.6 | I17: 13
A18: Jesper Bechsgaard - Anders Handberg Sørensen | B18: 38.4 | C18: -100.8 | D18: 8.5 | E18: 17.9 | F18: -57.4 | H18: -93.4 | I18: 14
A19: Asger Bruhn - Per Ebdrup | B19: -10 | C19: -53.9 | D19: -18.7 | E19: -57.7 | F19: 20.6 | H19: -119.7 | I19: 15
A20: Martin Klausen - Palle Jensen | B20: -16.5 | C20: -23.6 | D20: -60.3 | E20: -45.6 | F20: -39.4 | H20: -185.4 | I20: 16
B21: =SUM(B5:B20) -> 0 | C21: =SUM(C5:C20) -> 0 | D21: -0.3 | E21: 0.2 | F21: 0.1 | H21: =SUM(H5:H20) -> 0

Sheet RR2
A1: Multi, RR2
E3: 1 | F3: 2 | G3: 3 | H3: 4 | I3: 5 | J3: 6 | K3: 7 | L3: 8 | M3: 9 | N3: 10 | O3: 11 | P3: 12 | Q3: 13 | R3: 14 | T3: Total | U3: Placering
A5: Jan Pedersen - Nils Mønsted | E5: 16.66 | F5: 12.43 | G5: 15.38 | H5: 10.02 | I5: 10.34 | J5: 9.22 | K5: 4.41 | L5: 4.12 | M5: 15.5 | N5: 14.37 | O5: 5.17 | P5: 13.3 | Q5: 8.95 | R5: 6.15 | T5: =AVERAGE(E5:R5) -> 10.43 | U5: 7
A6: Camilla Bo Krefeld - Johan Hammelev | E6: 9.44 | F6: 17.71 | G6: 5.44 | H6: 7.25 | I6: 10.33 | J6: 9.28 | K6: 8.17 | L6: 4.49 | M6: 15.31 | N6: 15.19 | O6: 13.44 | P6: 10.67 | Q6: 13.92 | R6: 14.38 | T6: =AVERAGE(E6:R6) -> 11.07285714 | U6: 4
A8: Ricardo Mirasola - Jan Kølbæk | E8: 15.31 | F8: 11.95 | G8: 4.62 | H8: 12.75 | I8: 4.57 | J8: 7.04 | K8: 11.25 | L8: 2.22 | M8: 16.74 | N8: 7.97 | O8: 12.28 | P8: 13.65 | Q8: 19.23 | R8: 14.72 | T8: =AVERAGE(E8:R8) -> 11.02142857 | U8: 5
A9: Marlene Henneberg - J.O Henneberg | E9: 4.7 | F9: 9.73 | G9: 14.56 | H9: 9.98 | I9: 6.55 | J9: 16.75 | K9: 2.95 | L9: 9.65 | M9: 9.29 | N9: 5.8 | O9: 10.14 | P9: 7.48 | Q9: 6.56 | R9: 12 | T9: =AVERAGE(E9:R9) -> 9.01 | U9: 13
A11: Lida Hulgaard - Øjvind Hulgaard | E11: 3.34 | F11: 2.29 | G11: 13.27 | H11: 5.19 | I11: 10.06 | J11: 5.54 | K11: 12.87 | L11: 9.39 | M11: 5.48 | N11: 4.57 | O11: 6.13 | P11: 6.65 | Q11: 0.77 | R11: 8 | T11: =AVERAGE(E11:R11) -> 6.682142857 | U11: 16
A12: Jesper Bechsgaard - Anders Handberg Sørensen | E12: 10.56 | F12: 7.57 | G12: 11.89 | H12: 8.26 | I12: 14.68 | J12: 18.08 | K12: 13.03 | L12: 10.73 | M12: 5.9 | N12: 12.25 | O12: 16.37 | P12: 1.6 | Q12: 13.44 | R12: 5.28 | T12: =AVERAGE(E12:R12) -> 10.68857143 | U12: 6
A14: Morten Bilde - Søren Cilleborg Bilde | E14: 5.21 | F14: 6.99 | G14: 6.73 | H14: 11.74 | I14: 15.43 | J14: 3.25 | K14: 15.59 | L14: 15.51 | M14: 5.66 | N14: 6.81 | O14: 13.99 | P14: 17.58 | Q14: 8.88 | R14: 12.15 | T14: =AVERAGE(E14:R14) -> 10.39428571 | U14: 8
A15: Emil Jepsen - Peter Jepsen | E15: 15.15 | F15: 5.38 | G15: 8.11 | H15: 14.81 | I15: 13.45 | J15: 12.96 | K15: 11.83 | L15: 15.88 | M15: 12.89 | N15: 13.15 | O15: 13.83 | P15: 19.08 | Q15: 12.38 | R15: 8.32 | T15: =AVERAGE(E15:R15) -> 12.99230769 | U15: 1
A17: Jørgen Cilleborg Hansen - Steen Schou | E17: 4.69 | F17: 10.27 | G17: 17.57 | H17: 6.93 | I17: 9.67 | J17: 10.78 | K17: 6.72 | L17: 12.67 | M17: 7.11 | N17: 13.19 | O17: 13.87 | P17: 18.4 | Q17: 15.61 | R17: 12.73 | T17: =AVERAGE(E17:R17) -> 11.44357143 | U17: 2
A18: H K Sørensen - Niels Henriksen | E18: 15.3 | F18: 8.05 | G18: 12.47 | H18: 5.59 | I18: 9.66 | J18: 10.72 | K18: 11.42 | L18: 6.21 | M18: 14.34 | N18: 6.85 | O18: 3.63 | P18: 13.35 | Q18: 11.42 | R18: 14.41 | T18: =AVERAGE(E18:R18) -> 10.24428571 | U18: 9
A20: Asger Bruhn - Per Ebdrup | E20: 11.87 | F20: 5.85 | G20: 6.21 | H20: 5.56 | I20: 5.32 | J20: 14.46 | K20: 8.75 | L20: 10.35 | M20: 4.5 | N20: 4.81 | O20: 6.01 | P20: 0.92 | Q20: 8.58 | R20: 7.27 | T20: =AVERAGE(E20:R20) -> 7.175714286 | U20: 15
A21: Martin Klausen - Palle Jensen | E21: 3.98 | F21: 7.3 | G21: 9.67 | H21: 6.6 | I21: 9.94 | J21: 1.92 | K21: 17.05 | L21: 17.78 | M21: 4.69 | N21: 5.63 | O21: 6.17 | P21: 2.42 | Q21: 4.39 | R21: 5.59 | T21: =AVERAGE(E21:R21) -> 7.366428571 | U21: 14
A23: Nikolaj Krefeld Hammelev - Lars Peter Damgaard | E23: 4.85 | F23: 13.01 | G23: 10.33 | H23: 14.44 | I23: 8.87 | J23: 10.23 | K23: 13.28 | L23: 13.79 | M23: 14.1 | N23: 15.43 | O23: 7.72 | P23: 12.52 | Q23: 6.08 | R23: 13.85 | T23: =AVERAGE(E23:R23) -> 11.32142857 | U23: 3
A24: Kresten Roland Johansen - Troels Buus Thomsen | E24: 14.79 | F24: 14.62 | G24: 13.79 | H24: 13.4 | I24: 6.21 | J24: 7.37 | K24: 8.58 | L24: 7.33 | M24: 14.52 | N24: 7.75 | O24: 9.86 | P24: 6.35 | Q24: 11.05 | R24: 5.62 | T24: =AVERAGE(E24:R24) -> 10.08857143 | U24: 12
A26: Henrik Caspersen - Niels Krøjgaard | E26: 8.13 | F26: 12.7 | G26: 2.43 | H26: 14.41 | I26: 11.13 | J26: 12.63 | K26: 7.13 | L26: 9.27 | M26: 3.26 | N26: 14.2 | O26: 14.83 | P26: 9.33 | Q26: 11.12 | R26: 11.68 | T26: =AVERAGE(E26:R26) -> 10.16071429 | U26: 11
A27: Jens Kofoed - Emil Buus Thomsen | E27: 16.02 | F27: 14.15 | G27: 7.53 | H27: 13.07 | I27: 13.79 | J27: 9.77 | K27: 6.97 | L27: 10.61 | M27: 10.71 | N27: 12.03 | O27: 6.56 | P27: 6.7 | Q27: 7.62 | R27: 7.85 | T27: =AVERAGE(E27:R27) -> 10.24142857 | U27: 10

Sheet Hold i alt
A1: Klub 32 - Hold 2023/24
B5: RR1 | C5: RR2 | D5: Total | E5: Placering
A6: Steen Schou | B6: 117.35 | C6: 87.28 | D6: =SUM(B6:C6) -> 204.63 | E6: 1
A7: Marlene Henneberg | B7: 91.02 | C7: 76.49 | D7: 167.51 | E7: 2
A8: Morten Bilde | B8: 74.88 | C8: 87.63 | D8: 162.51 | E8: 3
A9: Nils Mønsted | B9: 76.18 | C9: 82.14 | D9: 158.32 | E9: 4
A10: Henrik Caspersen | B10: 83.54 | C10: 66.44 | D10: 149.98 | E10: 5
A11: Nikolaj Krefeld Hammelev | B11: 61.39 | C11: 80.16 | D11: 141.55 | E11: 6
A12: Lida Hulgaard | B12: 44.09 | C12: 48.29 | D12: 92.38 | E12: 7
A13: Per Ebdrup | B13: 11.55 | C13: 31.57 | D13: 43.12 | E13: 8

Sheet Slutspil
A1: SLUTSPIL
E4: 1 | F4: 2 | G4: 3 | H4: 4 | I4: 5 | J4: 6 | K4: 7 | L4: 8 | N4: Total | O4: Placering
A6: Jan Pedersen - Nils Mønsted | E6: 12.58 | F6: 9.53 | G6: 9.71 | H6: 3.06 | I6: 10.6 | J6: 14.12 | K6: 15.42 | L6: 14.58 | N6: =AVERAGE(E6:L6) -> 11.2 | O6: 3
A7: Camilla Bo Krefeld - Johan Hammelev | E7: 7.74 | F7: 12.06 | G7: 8.56 | H7: 11.42 | I7: 8.17 | J7: 10.55 | K7: 11.08 | L7: 16.33 | N7: =AVERAGE(E7:L7) -> 10.73875 | O7: 5
A9: Ricardo Mirasola - Jan Kølbæk | E9: 8.71 | F9: 15.07 | G9: 7.76 | H9: 5.49 | I9: 13.56 | J9: 3.59 | K9: 11.69 | L9: 7.55 | N9: =AVERAGE(E9:L9) -> 9.1775 | O9: 12
A10: Marlene Henneberg - J.O Henneberg | E10: 11.68 | F10: 7.58 | G10: 12.85 | H10: 11.09 | I10: 13.78 | J10: 5.31 | K10: 10.15 | L10: 15.33 | N10: 10.97125 | O10: 4
A12: Lida Hulgaard - Øjvind Hulgaard | E12: 13.55 | F12: 16.96 | G12: 7.23 | H12: 14.49 | I12: 9.13 | J12: 11.62 | K12: 9.65 | L12: 11.08 | N12: =AVERAGE(E12:L12) -> 11.71375 | O12: 2
A13: Jesper Bechsgaard - Anders Handberg Sørensen | E13: 17.2 | F13: 11.88 | G13: 3.36 | H13: 5.4 | I13: 12.94 | J13: 10.46 | K13: 11.84 | L13: 12.2 | N13: 10.66 | O13: 6
A15: Morten Bilde - Søren Cilleborg Bilde | E15: 12.26 | F15: 10.47 | G15: 10.29 | H15: 8.58 | I15: 6.44 | J15: 14.69 | K15: 9.85 | L15: 12.45 | N15: =AVERAGE(E15:L15) -> 10.62875 | O15: 7
A16: Emil Jepsen - Peter Jepsen | E16: 7.42 | F16: 7.94 | G16: 11.44 | H16: 16.94 | I16: 6.22 | J16: 16.41 | K16: 8.31 | L16: 4.67 | N16: 9.91875 | O16: 11
A18: Jørgen Cilleborg Hansen - Steen Schou | E18: 11.29 | F18: 12.42 | G18: 12.24 | H18: 8.91 | I18: 9.4 | J18: 9.45 | K18: 8.92 | L18: 8.42 | N18: =AVERAGE(E18:L18) -> 10.13125 | O18: 10
A19: H K Sørensen - Niels Henriksen | E19: 8.32 | F19: 4.93 | G19: 7.15 | H19: 14.51 | I19: 11.83 | J19: 5.88 | K19: 4.58 | L19: 3.67 | N19: 7.60875 | O19: 15.5
A21: Asger Bruhn - Per Ebdrup | E21: 10.87 | F21: 10.34 | G21: 7.74 | H21: 1.14 | I21: 2.59 | J21: 8.02 | K21: 14.05 | L21: 10.1 | N21: =AVERAGE(E21:L21) -> 8.10625 | O21: 14
A22: Martin Klausen - Palle Jensen | E22: 5.35 | F22: 10.46 | G22: 5.37 | H22: 12.99 | I22: 9.05 | J22: 8.72 | K22: 5.98 | L22: 2.95 | N22: 7.60875 | O22: 15.5
A24: Nikolaj Krefeld Hammelev - Lars Peter Damgaard | E24: 6.45 | F24: 8.12 | G24: 16.64 | H24: 5.51 | I24: 10.95 | J24: 11.98 | K24: 14.02 | L24: 9.9 | N24: =AVERAGE(E24:L24) -> 10.44625 | O24: 9
A25: Kresten Roland Johansen - Troels Buus Thomsen | E25: 2.8 | F25: 3.04 | G25: 12.77 | H25: 14.6 | I25: 17.41 | J25: 11.28 | K25: 5.95 | L25: 17.05 | N25: 10.6125 | O25: 8
A27: Henrik Caspersen - Niels Krøjgaard | E27: 9.13 | F27: 9.54 | G27: 12.26 | H27: 7.01 | I27: 7.06 | J27: 8.38 | K27: 10.35 | L27: 7.8 | N27: =AVERAGE(E27:L27) -> 8.94125 | O27: 13
A28: Jens Kofoed - Emil Buus Thomsen | E28: 14.65 | F28: 9.66 | G28: 14.63 | H28: 18.86 | I28: 10.87 | J28: 9.54 | K28: 8.16 | L28: 8.92 | N28: 11.91125 | O28: 1

Sheet Par
A1: Par
B3: 1.aften | C3: 2.aften | D3: 3.aften | E3: 4.aften | F3: 5.aften | H3: Sum | J3: Placering
H5: =SUM(B5:G5) -> 0
H6: 0
H7: 0
H8: 0
H9: 0
H10: 0
H11: 0
H12: 0
H13: 0
H14: 0
H15: 0
H16: 0
H17: 0
H18: 0
H19: 0
H20: 0
B22: =SUM(B5:B21) -> 0 | C22: =SUM(C5:C21) -> 0 | D22: =SUM(D5:D21) -> 0 | E22: 0 | F22: 0 | H22: 0

Sheet Grand prix
A1: Grand prix klub 32 (2023-2024)
F3: Intro hold | G3: RR 1 | H3: IMP1 | I3: RR2 | J3: Slutspil | K3: Par | M3: Total | O3: Placering
A5: Camilla Bo Krefeld - Johan Hammelev | F5: =Intro!X15*4 -> 4 | G5: ='RR1'!U6*7 -> 21 | H5: ='Imp Par'!I10*5 -> 30 | I5: ='RR2'!U6*7 -> 28 | J5: =Slutspil!O7*4 -> 20 | M5: =SUM(F5:L5) -> 103 | O5: 1
A6: Jørgen Cilleborg Hansen - Steen Schou | F6: =Intro!X23*4 -> 8 | G6: ='RR1'!U17*7 -> 7 | H6: ='Imp Par'!I12*5 -> 40 | I6: ='RR2'!U17*7 -> 14 | J6: =Slutspil!O18*4 -> 40 | M6: =SUM(F6:L6) -> 109 | O6: 2
A7: Jens Kofoed - Emil Buus Thomasn | F7: =Intro!X27*4 -> 20 | G7: ='RR1'!U27*7 -> 28 | H7: ='Imp Par'!I8*5 -> 20 | I7: ='RR2'!U27*7 -> 70 | J7: =Slutspil!O28*4 -> 4 | M7: =SUM(F7:L7) -> 142 | O7: 3
A8: Emil Jepsen - Peter Jepsen | F8: =Intro!X5*4 -> 32 | G8: ='RR1'!U15*7 -> 42 | H8: ='Imp Par'!I9*5 -> 25 | I8: ='RR2'!U15*7 -> 7 | J8: =Slutspil!O16*4 -> 44 | M8: =SUM(F8:L8) -> 150 | O8: 4
A9: Ricardo Mirasola - Jan Kølbæk | F9: =Intro!X9*4 -> 28 | G9: ='RR1'!U8*7 -> 14 | H9: ='Imp Par'!I11*5 -> 35 | I9: ='RR2'!U8*7 -> 35 | J9: =Slutspil!O9*4 -> 48 | M9: =SUM(F9:L9) -> 160 | O9: 5
A10: Nikolaj Krefeld Hammelev - Lars Peter Damgaard | F10: =Intro!X12*4 -> 12 | G10: ='RR1'!U23*7 -> 84 | H10: ='Imp Par'!I7*5 -> 15 | I10: ='RR2'!U23*7 -> 21 | J10: =Slutspil!O24*4 -> 36 | M10: =SUM(F10:L10) -> 168 | O10: 6
A11: Jan Pedersen - Nils Mønsted | F11: =Intro!X8*4 -> 16 | G11: ='RR1'!U5*7 -> 77 | H11: ='Imp Par'!I13*5 -> 45 | I11: ='RR2'!U5*7 -> 49 | J11: =Slutspil!O6*4 -> 12 | M11: =SUM(F11:L11) -> 199 | O11: 7
A12: H K Sørensen - Niels Henriksen | F12: =Intro!X24*4 -> 52 | G12: ='RR1'!U18*7 -> 49 | H12: ='Imp Par'!I5*5 -> 5 | I12: ='RR2'!U18*7 -> 63 | J12: =Slutspil!O19*4 -> 62 | M12: =SUM(F12:L12) -> 231 | O12: 8
A13: Morten Bilde - Søren Cilleborg Bilde | F13: =Intro!X21*4 -> 24 | G13: ='RR1'!U14*7 -> 70 | H13: ='Imp Par'!I16*5 -> 60 | I13: ='RR2'!U14*7 -> 56 | J13: =Slutspil!O15*4 -> 28 | M13: =SUM(F13:L13) -> 238 | O13: 9
A14: Henrik Caspersen - Niels Krøjgaard | F14: =Intro!X17*4 -> 36 | G14: ='RR1'!U26*7 -> 63 | H14: ='Imp Par'!I6*5 -> 10 | I14: ='RR2'!U26*7 -> 77 | J14: =Slutspil!O27*4 -> 52 | M14: =SUM(F14:L14) -> 238 | O14: 10
A15: Marlene Henneberg - J.O Henneberg | F15: =Intro!X11*4 -> 48 | G15: ='RR1'!U9*7 -> 35 | H15: ='Imp Par'!I14*5 -> 50 | I15: ='RR2'!U9*7 -> 91 | J15: =Slutspil!O10*4 -> 16 | M15: =SUM(F15:L15) -> 240 | O15: 11
A16: Kresten Roland Johansen - Troels Buus Thomsen | F16: =Intro!X26*4 -> 44 | G16: ='RR1'!U24*7 -> 56 | H16: ='Imp Par'!I15*5 -> 55 | I16: ='RR2'!U24*7 -> 84 | J16: =Slutspil!O25*4 -> 32 | M16: =SUM(F16:L16) -> 271 | O16: 12
A17: Jesper Bechsgaard - Anders Handberg Sørensen | F17: =Intro!X20*4 -> 56 | G17: ='RR1'!U12*7 -> 98 | H17: ='Imp Par'!I18*5 -> 70 | I17: ='RR2'!U12*7 -> 42 | J17: =Slutspil!O13*4 -> 24 | M17: =SUM(F17:L17) -> 290 | O17: 13
A18: Lida Hulgaard - Øjvind Hulgaard | F18: =Intro!X14*4 -> 40 | G18: ='RR1'!U11*7 -> 91 | H18: ='Imp Par'!I17*5 -> 65 | I18: ='RR2'!U11*7 -> 112 | J18: =Slutspil!O12*4 -> 8 | M18: =SUM(F18:L18) -> 316 | O18: 14
A19: Asger Bruhn - Per Ebdrup | F19: =Intro!X6*4 -> 60 | G19: ='RR1'!U20*7 -> 112 | H19: ='Imp Par'!I19*5 -> 75 | I19: ='RR2'!U20*7 -> 105 | J19: =Slutspil!O21*4 -> 56 | M19: =SUM(F19:L19) -> 408 | O19: 15
A20: Martin Klausen - Palle Jensen | F20: =Intro!X18*4 -> 64 | G20: ='RR1'!U21*7 -> 105 | H20: ='Imp Par'!I20*5 -> 80 | I20: ='RR2'!U21*7 -> 98 | J20: =Slutspil!O22*4 -> 62 | M20: =SUM(F20:L20) -> 409 | O20: 16

Sheet Fremmøde
A1: Fremmøde som samlet par
B3: Introhold | C3: RR1 | D3: Imp | E3: RR2 | F3: Slut | G3: par | I3: Fremmøde% | K3: Fremmøde/antal
A4: Aftener: | B4: 4 | C4: 7 | D4: 5 | E4: 7 | F4: 4 | G4: 5 | K4: 12
B5: Fremmøde
A6: Ricardo Mirasola - Jan Kølbæk | B6: 4 | C6: 7 | D6: 1 | I6: =SUM(B6:G6)/$K$4% -> 100 | K6: =SUM(B6:G6) -> 12
A7: Marlene Henneberg - J.O Henneberg | B7: 4 | C7: 7 | D7: 1 | I7: 100 | K7: 12
A8: Camilla Bo Krefeld - Johan Hammelev | B8: 4 | C8: 7 | D8: 1 | I8: 100 | K8: 12
A9: Jan Pedersen - Nils Mønsted | B9: 4 | C9: 6 | D9: 1 | I9: 91.66666667 | K9: 11
A10: Kresten Roland Johansen - Troels Buus Thomsen | B10: 4 | C10: 6 | D10: 1 | I10: 91.66666667 | K10: 11
A11: Emil Jepsen - Peter Jepsen | B11: 4 | C11: 6 | D11: 1 | I11: 91.66666667 | K11: 11
A12: Asger Bruhn - Per Ebdrup | B12: 4 | C12: 6 | D12: 1 | I12: 91.66666667 | K12: 11
A13: Lida Hulgaard - Øjvind Hulgaard | B13: 4 | C13: 5 | D13: 1 | I13: 83.33333333 | K13: 10
A14: Henrik Caspersen - Niels Krøjgaard | B14: 4 | C14: 5 | D14: 1 | I14: 83.33333333 | K14: 10
A15: H K Sørensen - Niels Henriksen | B15: 4 | C15: 5 | D15: 1 | I15: 83.33333333 | K15: 10
A16: Jørgen Cilleborg Hansen - Steen Schou | B16: 2 | C16: 7 | D16: 1 | I16: 83.33333333 | K16: 10
A17: Morten Bilde - Søren Cilleborg Bilde | B17: 3 | C17: 5 | D17: 1 | I17: 75 | K17: 9
A18: Jens Kofoed - Emil Buus Thomasn | B18: 3 | C18: 5 | D18: 1 | I18: 75 | K18: 9
A19: Martin Klausen - Palle Jensen | B19: 2 | C19: 6 | D19: 1 | I19: 75 | K19: 9
A20: Jesper Bechsgaard - Anders Handberg Sørensen | B20: 1 | C20: 6 | D20: 1 | I20: 66.66666667 | K20: 8
A21: Nikolaj Krefeld Hammelev - Lars Peter Damgaard | B21: 2 | C21: 5 | D21: 1 | I21: 66.66666667 | K21: 8
